bitfinex-derivatives/quotes_SOLF0:USTF0_20250730
["timestamp","ask_amount","ask_price","bid_price","bid_amount"]
[1753857965771,5.5068,181.61,181.59,3.03]
[1753857965976,3.24,181.6,181.57,5.5079]
[1753857966180,3.24,181.59,181.58,3.03]
[1753857967681,3.24,181.61,181.59,3.03]
[1753857968081,3.24,181.6,181.56,2.70383146]
[1753857968783,3.24,181.59,181.57,3.03]
[1753857969082,2.70383146,181.65,181.59,3.03]
[1753857969083,3.24,181.61,181.59,3.03]
[1753857969286,3.24,181.61,181.57,3.03]
[1753857969580,3.24,181.61,181.58,3.03]
[1753857970284,8.7469,181.61,181.58,3.03]
[1753857970485,3.24,181.6,181.58,3.03]
[1753857970674,3.24,181.59,181.58,3.03]
[1753857972580,3.24,181.59,181.55,5.5083]
[1753857972787,3.24,181.59,181.53,3.03]
[1753857973083,5.508,181.57,181.53,8.539]
[1753857973280,3.24,181.56,181.54,3.03]
[1753857973582,5.508,181.57,181.54,8.5388]
[1753857973783,3.24,181.55,181.54,8.5388]
[1753857974375,3.24,181.55,181.54,3.03]
[1753857974586,3.24,181.55,181.53,3.03]
[1753857974984,2.70383146,181.6,181.53,3.03]
[1753857975183,3.24,181.54,181.53,3.03]
[1753857976286,3.24,181.54,181.53,8.5392]
[1753857977587,3.24,181.54,181.53,3.03]
[1753857978983,5.5086,181.55,181.53,3.03]
[1753857979185,2.70383146,181.6,181.53,8.5392]
[1753857979385,5.5082,181.57,181.54,3.03]
[1753857979584,3.24,181.56,181.54,3.03]
[1753857980880,8.7484,181.56,181.54,3.03]
[1753857981083,3.24,181.55,181.54,3.03]
[1753857981287,3.24,181.55,181.52,125.8995]
[1753857981490,8.7486,181.55,181.52,117.24]
[1753857981789,3.1,181.54,181.52,117.24]
[1753857982292,5.5084,181.56,181.52,120.39]
[1753857982487,3.1,181.54,181.53,3.15]
[1753857982987,5.5081,181.57,181.54,5.5088]
[1753857983289,3.1,181.55,181.54,5.5088]
[1753857983489,3.1,181.55,181.53,5.5091]
[1753857983691,3.1,181.55,181.54,3.15]
[1753857984292,3.1,181.55,181.54,8.6589]
[1753857985589,3.1,181.55,181.54,3.15]
[1753857985890,3.1,181.55,181.53,3.15]
[1753857986095,3.1,181.55,181.52,117.24]
[1753857986394,8.6088,181.55,181.52,120.39]
[1753857986590,3.1,181.54,181.52,120.39]
[1753857987091,5.5088,181.55,181.52,125.8994]
[1753857987295,3.1,181.53,181.52,122.7494]
[1753857987689,3.1,181.53,181.52,125.8994]
[1753857988086,3.1,181.55,181.52,122.7494]
[1753857988290,3.1,181.54,181.53,3.15]
[1753857989097,5.5084,181.56,181.54,3.15]
[1753857989283,3.1,181.55,181.54,3.15]
[1753857990693,3.1,181.56,181.55,3.15]
[1753857993397,12.84287194,181.56,181.55,3.15]
[1753857993693,3.1,181.55,181.54,3.15]
[1753857994094,3.1,181.54,181.53,3.15]
[1753857994897,3.1,181.54,181.53,8.6592]
[1753857995691,5.5081,181.57,181.53,8.6592]
[1753857995897,2.70383146,181.58,181.55,3.15]
[1753857995898,4.23494251,181.56,181.55,3.15]
[1753857996296,3.1,181.6,181.58,5.5075]
[1753857996492,3.1,181.6,181.59,3.15]
[1753857997091,7.33401867,181.6,181.59,3.15]
[1753857997498,3.1,181.59,181.57,122.7678]
[1753857998097,3.1,181.59,181.58,8.6577]
[1753857998495,4.23405923,181.59,181.58,8.6577]
[1753857999095,3.1,181.6,181.58,5.5077]
[1753857999298,3.1,181.6,181.59,3.15]
[1753857999600,7.33385755,181.6,181.59,3.15]
[1753858001099,7.33368281,181.6,181.59,3.15]
[1753858001502,7.33368281,181.6,181.59,8.6574]
[1753858001701,7.33368281,181.6,181.59,3.15]
[1753858002000,4.23383495,181.6,181.57,117.26]
[1753858002201,5.5069,181.61,181.58,3.15]
[1753858002501,4.23374416,181.6,181.58,3.15]
[1753858002702,3.1,181.6,181.58,3.15]
[1753858003104,3.1,181.6,181.57,120.41]
[1753858003294,3.1,181.6,181.57,117.26]
[1753858003494,3.1,181.58,181.54,117.2]
[1753858003703,3.1,181.56,181.54,120.35]
[1753858004001,3.1,181.55,181.54,120.35]
[1753858005010,3.1,181.58,181.54,120.35]
[1753858005209,3.1,181.58,181.55,3.15]
[1753858005505,5.5067,181.62,181.58,5.5075]
[1753858005706,3.1,181.6,181.59,3.15]
[1753858005898,7.33409294,181.6,181.59,3.15]
[1753858006298,4.23409294,181.6,181.58,5.5075]
[1753858006498,3.1,181.6,181.58,8.6575]
[1753858007504,5.5069,181.61,181.58,8.6575]
[1753858007505,3.1,181.59,181.58,8.6575]
[1753858009007,3.1,181.61,181.6,3.15]
[1753858009408,4.2329597,181.61,181.6,11.36073146]
[1753858009605,3.1,181.64,181.6,5.85383146]
[1753858009802,4.23222635,181.63,181.61,3.15]
[1753858010003,4.23222635,181.62,181.61,8.6568]
[1753858010209,3.1,181.64,181.62,3.15]
[1753858010508,4.23158017,181.63,181.62,3.15]
[1753858010808,3.1,181.64,181.62,8.6563]
[1753858011009,3.1,181.64,181.63,3.15]
[1753858011312,7.3314282,181.64,181.63,3.15]
[1753858012110,3.1,181.64,181.63,3.15]
[1753858012316,3.1,181.64,181.63,8.6562]
[1753858013018,3.22,181.66,181.64,5.5058]
[1753858013316,3.22,181.65,181.64,8.5258]
[1753858015719,3.22,181.67,181.65,5.5055]
[1753858016018,3.22,181.67,181.66,3.02]
[1753858016721,3.22,181.66,181.62,3.02]
[1753858018115,5.5056,181.65,181.62,8.5262]
[1753858018313,3.22,181.66,181.62,8.5262]
[1753858018720,8.7253,181.66,181.62,8.5262]
[1753858018918,3.22,181.65,181.63,8.5261]
[1753858019121,3.22,181.65,181.64,3.02]
[1753858019620,3.22,181.65,181.64,8.5259]
[1753858021021,3.22,181.65,181.63,8.5261]
[1753858021817,3.22,181.65,181.63,3.02]
[1753858022018,3.22,181.65,181.62,5.5064]
[1753858022321,8.7258,181.65,181.61,8.21053146]
[1753858022525,3.22,181.64,181.61,8.5267]
[1753858023327,3.22,181.63,181.61,5.5067]
[1753858024320,8.7262,181.63,181.6,125.747]
[1753858024627,3.22,181.62,181.61,3.02]
[1753858025126,3.22,181.64,181.61,3.02]
[1753858025625,3.22,181.63,181.62,5.5062]
[1753858025826,3.22,181.63,181.62,8.5262]
[1753858026628,3.22,181.64,181.63,8.5262]
[1753858026828,3.22,181.63,181.61,3.02]
[1753858027021,3.22,181.62,181.61,3.02]
[1753858027328,3.22,181.62,181.61,8.5268]
[1753858027829,5.5056,181.65,181.62,8.5265]
[1753858028025,3.22,181.63,181.62,8.5265]
[1753858036136,3.22,181.65,181.64,3.02]
[1753858036635,3.22,181.65,181.63,5.5061]
[1753858036834,3.22,181.65,181.63,3.02]
[1753858039138,8.7256,181.65,181.63,3.02]
[1753858039336,3.22,181.64,181.63,3.02]
[1753858042638,3.22,181.64,181.63,8.5262]
[1753858042931,3.0,181.67,181.63,3.02]
[1753858043632,3.0,181.66,181.63,3.02]
[1753858044244,3.0,181.66,181.65,3.09]
[1753858046132,7.21627734,181.66,181.65,3.09]
[1753858046939,12.72157734,181.66,181.65,3.09]
[1753858047140,3.0,181.65,181.61,2.70383146]
[1753858047640,3.0,181.65,181.64,3.09]
[1753858048136,5.5056,181.65,181.62,8.5965]
[1753858048340,3.0,181.64,181.62,8.5965]
[1753858049035,8.5062,181.63,181.6,122.727]
[1753858049243,3.0,181.62,181.61,3.09]
[1753858049743,3.0,181.62,181.61,8.5968]
[1753858050442,4.63863866,181.69,181.62,5.5062]
[1753858050742,3.0,181.67,181.62,3.09]
[1753858051042,5.5061,181.64,181.62,3.09]
[1753858051242,3.0,181.63,181.62,3.09]
[1753858051934,8.5062,181.63,181.62,3.09]
[1753858052839,3.0,181.63,181.62,3.09]
[1753858054244,12.73290192,181.63,181.62,3.09]
[1753858054540,7.22670192,181.63,181.62,3.09]
[1753858056344,7.22670192,181.63,181.62,8.5965]
[1753858056541,3.0,181.63,181.62,3.09]
[1753858057141,3.0,181.67,181.6,120.31]
[1753858057344,5.5059,181.64,181.61,5.5067]
[1753858057535,7.27640153,181.63,181.61,8.5967]
[1753858057736,3.0,181.63,181.62,3.09]
[1753858058034,7.27632914,181.63,181.62,3.09]
[1753858058230,7.27632914,181.63,181.62,8.5965]
[1753858059736,7.27632914,181.63,181.62,3.09]
[1753858059935,3.0,181.62,181.6,117.22]
[1753858060340,3.0,181.61,181.6,117.22]
[1753858060636,3.0,181.6,181.54,3.09]
[1753858060839,6.98090007,181.59,181.54,3.09]
[1753858061042,3.0,181.56,181.54,3.09]
[1753858061341,3.0,181.55,181.53,117.14]
[1753858061542,3.0,181.54,181.53,122.6491]
[1753858061737,3.0,181.54,181.53,125.7391]
[1753858062135,3.0,181.54,181.53,120.23]
[1753858062440,3.0,181.54,181.53,117.14]
[1753858062746,4.63863866,181.61,181.49,2.70383146]
[1753858062747,3.0,181.6,181.5,3.09]
[1753858062944,3.0,181.56,181.5,3.09]
[1753858063335,3.0,181.56,181.49,120.23]
[1753858063538,3.0,181.54,181.49,120.23]
[1753858063738,3.0,181.54,181.49,117.14]
[1753858063939,3.0,181.52,181.5,3.09]
[1753858064838,3.0,181.51,181.5,3.09]
[1753858065745,3.0,181.51,181.49,117.14]
[1753858065942,5.5096,181.52,181.49,117.14]
[1753858065943,3.0,181.5,181.49,117.14]
[1753858066645,3.0,181.5,181.49,120.23]
[1753858068247,3.0,181.5,181.49,117.14]
[1753858069142,3.0,181.5,181.49,120.23]
[1753858069742,3.0,181.52,181.5,3.09]
[1753858070550,3.0,181.51,181.49,117.14]
[1753858070945,3.0,181.54,181.49,117.14]
[1753858071246,3.0,181.55,181.5,5.79383146]
[1753858071548,3.01,181.57,181.51,3.17]
[1753858071939,2.70383146,181.58,181.5,2.70383146]
[1753858072138,3.01,181.58,181.55,3.17]
[1753858072344,3.01,181.58,181.56,3.17]
[1753858072643,5.5077,181.58,181.57,3.17]
[1753858073138,8.5177,181.58,181.57,3.17]
[1753858077155,3.01,181.58,181.57,3.17]
[1753858078154,8.5177,181.58,181.57,3.17]
[1753858079453,3.01,181.58,181.57,3.17]
[1753858079754,5.5074,181.59,181.57,3.17]
[1753858079949,3.01,181.59,181.57,3.17]
[1753858080355,3.01,181.63,181.58,3.17]
[1753858081949,5.507,181.61,181.57,2.70383146]
[1753858082153,3.01,181.6,181.59,3.17]
[1753858086656,3.01,181.6,181.59,8.6774]
[1753858087257,3.01,181.61,181.6,3.17]
[1753858087647,3.01,181.63,181.61,3.17]
[1753858088150,5.5061,181.64,181.59,2.70383146]
[1753858088358,3.01,181.64,181.63,3.17]
[1753858089260,8.5159,181.64,181.63,3.17]
[1753858089961,8.5159,181.64,181.61,8.6768]
[1753858090155,3.01,181.63,181.62,3.17]
[1753858090660,3.01,181.62,181.61,3.17]
[1753858091064,5.5065,181.62,181.6,3.17]
[1753858091258,3.01,181.61,181.6,3.17]
[1753858093966,3.01,181.61,181.6,8.6771]
[1753858096062,3.01,181.61,181.59,2.70383146]
[1753858096273,3.01,181.61,181.58,3.17]
[1753858096965,3.01,181.59,181.58,3.17]
[1753858097766,3.01,181.59,181.58,8.6777]
[1753858097968,2.70383146,181.65,181.57,2.70383146]
[1753858098269,5.5065,181.62,181.59,5.5073]
[1753858098480,3.01,181.61,181.59,3.17]
[1753858098767,3.01,181.6,181.57,2.70383146]
[1753858098966,3.01,181.6,181.58,5.5077]
[1753858099476,3.01,181.6,181.59,3.17]
[1753858099766,2.70383146,181.66,181.59,2.70383146]
[1753858099968,2.70383146,181.68,181.6,3.17]
[1753858100262,3.01,181.62,181.6,3.17]
[1753858100462,3.01,181.62,181.61,5.5068]
[1753858100666,3.01,181.62,181.61,8.6768]
[1753858101367,5.5056,181.65,181.61,8.6768]
[1753858101666,2.99,181.64,181.63,2.94]
[1753858102368,2.99,181.64,181.63,8.4462]
[1753858102769,2.99,181.66,181.65,2.94]
[1753858107373,8.4953,181.66,181.63,5.5061]
[1753858107669,2.99,181.65,181.64,2.94]
[1753858110571,8.4956,181.65,181.64,2.94]
[1753858111170,2.99,181.65,181.64,2.94]
[1753858111870,8.4956,181.65,181.64,2.94]
[1753858112363,5.5059,181.64,181.61,8.21053146]
[1753858112669,2.99,181.63,181.61,11.15053146]
[1753858112869,2.99,181.63,181.62,2.94]
[1753858113769,2.99,181.63,181.61,8.21053146]
[1753858114274,2.99,181.63,181.62,2.94]
[1753858116172,2.99,181.63,181.58,2.70383146]
[1753858116372,2.99,181.63,181.61,2.94]
[1753858116969,2.99,181.62,181.61,2.94]
[1753858117673,5.5066,181.62,181.6,2.94]
[1753858117873,2.99,181.61,181.6,2.94]
[1753858118368,2.99,181.61,181.58,5.64383146]
[1753858118574,2.99,181.61,181.58,2.94]
[1753858119175,5.5073,181.6,181.58,2.94]
[1753858119374,2.99,181.59,181.58,2.94]
[1753858120177,2.99,181.59,181.58,8.4477]
[1753858120376,2.99,181.59,181.58,2.94]
[1753858121875,2.99,181.59,181.58,8.4477]
[1753858122072,5.5065,181.62,181.58,2.94]
[1753858122377,2.99,181.64,181.59,2.94]
[1753858122573,4.18758135,181.63,181.61,2.94]
[1753858122777,2.99,181.64,181.61,2.94]
[1753858122977,2.70383146,181.67,181.61,2.94]
[1753858123177,2.99,181.63,181.61,2.94]
[1753858124274,5.5058,181.65,181.62,8.4465]
[1753858124473,4.1882749,181.64,181.63,2.94]
[1753858124675,2.99,181.64,181.63,2.94]
[1753858125277,2.99,181.64,181.63,8.4462]
[1753858125576,2.99,181.65,181.64,2.94]
[1753858125977,7.17812546,181.65,181.64,2.94]
[1753858126380,2.99,181.65,181.64,2.94]
[1753858126776,2.99,181.67,181.65,2.94]
[1753858126980,7.17826322,181.66,181.65,2.94]
[1753858127285,2.99,181.68,181.65,2.94]
[1753858127482,5.5045,181.69,181.65,2.94]
[1753858127678,4.18778853,181.68,181.65,2.94]
[1753858127884,2.99,181.67,181.65,2.94]
[1753858128280,5.5048,181.68,181.62,2.70383146]
[1753858128484,7.31834861,181.72,181.65,2.94]
[1753858128684,4.18770815,181.71,181.65,2.94]
[1753858128882,5.5049,181.68,181.65,2.94]
[1753858129084,2.99,181.67,181.65,2.94]
[1753858130283,2.99,181.67,181.64,5.5056]
[1753858130489,2.99,181.66,181.63,2.94]
[1753858132087,8.4953,181.66,181.63,8.446]
[1753858132292,2.99,181.65,181.64,3.22]
[1753858134598,8.4956,181.65,181.62,11.43023146]
[1753858134791,2.99,181.64,181.63,3.22]
[1753858136897,2.99,181.64,181.63,8.7262]
[1753858137297,2.99,181.64,181.63,3.22]
[1753858138304,2.99,181.64,181.61,3.22]
[1753858138500,2.99,181.64,181.6,2.70383146]
[1753858138700,2.99,181.64,181.62,3.22]
[1753858138999,2.99,181.64,181.63,3.22]
[1753858139205,5.5056,181.65,181.63,3.22]
[1753858139405,2.70383146,181.68,181.63,3.22]
[1753858139698,4.18810778,181.67,181.63,3.22]
[1753858139892,4.18810778,181.66,181.63,3.22]
[1753858140099,2.99,181.69,181.63,3.22]
[1753858140400,2.99,181.66,181.63,3.22]
[1753858140792,8.4952,181.67,181.64,3.22]
[1753858141297,5.5052,181.67,181.64,3.22]
[1753858141496,2.99,181.66,181.65,3.22]
[1753858141698,5.5047,181.68,181.65,3.22]
[1753858141904,7.17810743,181.67,181.65,3.22]
[1753858142202,2.99,181.67,181.66,3.22]
[1753858142398,7.17806701,181.67,181.66,3.22]
[1753858142604,7.17806701,181.67,181.66,8.7253]
[1753858142900,8.4945,181.69,181.66,8.7253]
[1753858143094,7.17819694,181.68,181.67,3.22]
[1753858144203,2.99,181.7,181.67,3.22]
[1753858144703,2.99,181.73,181.67,3.22]
[1753858144897,4.18795752,181.72,181.67,3.22]
[1753858145100,4.18795752,181.71,181.67,3.22]
[1753858145296,2.99,181.69,181.68,5.5045]
[1753858145992,2.99,181.69,181.68,8.7245]
[1753858146903,2.99,181.73,181.69,3.22]
[1753858147204,2.70383146,181.74,181.69,3.22]
[1753858147205,2.99,181.71,181.69,3.22]
[1753858148300,5.5037,181.71,181.69,3.22]
[1753858148499,2.99,181.7,181.69,3.22]
[1753858148807,8.494,181.7,181.69,3.22]
[1753858150610,2.99,181.69,181.68,3.22]
[1753858153713,2.99,181.71,181.68,3.22]
[1753858153907,2.99,181.73,181.68,3.22]
[1753858154211,2.99,181.71,181.68,3.22]
[1753858155217,2.99,181.71,181.66,2.70383146]
[1753858155218,2.99,181.73,181.64,3.22]
[1753858155514,2.99,181.73,181.66,3.22]
[1753858156011,2.99,181.7,181.67,5.5048]
[1753858156210,5.5039,181.71,181.67,5.5048]
[1753858156516,2.99,181.69,181.68,3.22]
[1753858156905,2.99,181.69,181.68,10.452657]
[1753858157308,2.99,181.69,181.68,4.948057]
[1753858158010,8.4943,181.69,181.68,4.948057]
[1753858158310,2.99,181.68,181.66,3.22]
[1753858158507,2.99,181.68,181.64,8.7256]
[1753858158508,2.99,181.67,181.64,8.7256]
[1753858158813,2.99,181.67,181.65,3.22]
[1753858159808,2.99,181.66,181.64,5.5056]
[1753858160014,2.99,181.66,181.63,1.728057]
[1753858160212,2.99,181.67,181.65,1.728057]
[1753858160415,7.232257,181.7,181.66,3.22]
[1753858160612,2.99,181.68,181.66,3.22]
[1753858160811,2.99,181.67,181.66,3.22]
[1753858161008,2.99,181.67,181.66,8.7252]
[1753858161212,2.99,181.68,181.67,3.22]
[1753858161714,5.504,181.71,181.67,8.7247]
[1753858161914,5.504,181.71,181.68,3.16]
[1753858161915,3.22,181.7,181.68,3.16]
[1753858162215,3.22,181.71,181.7,3.16]
[1753858164319,3.22,181.71,181.7,8.664]
[1753858164518,3.22,181.71,181.7,3.16]
[1753858166117,8.7237,181.71,181.68,8.6646]
[1753858166318,3.22,181.7,181.69,3.16]
[1753858167321,3.22,181.7,181.68,5.5046]
[1753858167522,3.22,181.7,181.68,8.6646]
[1753858167823,3.22,181.69,181.67,3.16]
[1753858168010,3.22,181.69,181.65,3.16]
[1753858168216,3.22,181.67,181.65,3.16]
[1753858168417,3.22,181.67,181.61,205.51516211]
[1753858168620,3.22,181.67,181.62,3.16]
[1753858169011,2.70074242,181.71,181.63,5.506]
[1753858169213,3.22,181.65,181.64,3.16]
[1753858169724,2.70074242,181.71,181.64,5.5058]
[1753858169911,3.22,181.66,181.64,5.5058]
[1753858170319,3.22,181.66,181.65,3.16]
[1753858171629,3.22,181.66,181.65,8.6656]
[1753858171828,3.22,181.68,181.66,3.16]
[1753858172027,3.22,181.67,181.63,2.70074242]
[1753858172528,5.5046,181.69,181.66,3.16]
[1753858172827,3.22,181.68,181.66,3.16]
[1753858173327,3.22,181.67,181.63,2.70074242]
[1753858173928,3.22,181.67,181.64,3.16]
[1753858174128,3.22,181.69,181.67,3.16]
[1753858174630,3.22,181.69,181.65,2.70074242]
[1753858174631,3.22,181.69,181.68,8.6646]
[1753858175329,5.5035,181.72,181.69,5.5043]
[1753858175529,7.41129479,181.71,181.69,8.6643]
[1753858175726,3.22,181.71,181.69,8.6643]
[1753858176031,8.7238,181.71,181.69,3.16]
[1753858176219,3.22,181.7,181.69,3.16]
[1753858177525,5.5038,181.71,181.69,3.16]
[1753858177830,2.70074242,181.74,181.7,3.16]
[1753858178031,4.19272507,181.73,181.7,3.16]
[1753858178234,9.69622507,181.72,181.7,3.16]
[1753858178426,7.41272507,181.71,181.7,3.16]
[1753858180634,8.7232,181.73,181.7,8.664]
[1753858180830,4.19328871,181.72,181.71,3.16]
[1753858181033,7.41328871,181.72,181.71,3.16]
[1753858186531,8.7229,181.74,181.71,8.6637]
[1753858186738,7.41462633,181.73,181.72,3.16]
[1753858189235,4.19462633,181.73,181.72,5.5034]
[1753858189439,3.22,181.78,181.72,3.16]
[1753858189640,3.22,181.76,181.73,2.70074242]
[1753858189840,3.22,181.75,181.74,3.16]
[1753858190434,3.22,181.75,181.74,8.6628]
[1753858191040,3.22,181.75,181.74,3.16]
[1753858191743,3.22,181.75,181.74,8.6628]
[1753858192240,3.25,181.79,181.73,2.70074242]
[1753858192443,7.43948776,181.78,181.77,2.94]
[1753858193434,3.25,181.77,181.76,2.94]
[1753858194238,3.25,181.77,181.76,8.4422]
[1753858195242,3.4528081,181.8,181.76,8.4422]
[1753858195438,3.25,181.78,181.77,2.94]
[1753858200252,8.7516,181.78,181.77,2.94]
[1753858200851,3.25,181.78,181.77,2.94]
[1753858203852,8.7516,181.78,181.77,2.94]
[1753858205049,3.25,181.79,181.77,1.72652831]
[1753858205252,3.25,181.79,181.76,4.66652831]
[1753858205451,5.5017,181.78,181.75,1.72652831]
[1753858205652,3.25,181.77,181.75,4.66652831]
[1753858206052,3.25,181.77,181.76,2.94]
[1753858206750,3.25,181.77,181.75,4.66652831]
[1753858207453,3.25,181.77,181.75,7.22882831]
[1753858207653,3.25,181.77,181.76,2.94]
[1753858208654,3.25,181.77,181.76,8.4422]
[1753858210653,3.25,181.77,181.76,2.94]
[1753858211955,3.25,181.77,181.76,8.4422]
[1753858213249,3.25,181.79,181.77,5.5018]
[1753858213459,6.7028081,181.8,181.79,2.94]
[1753858213754,6.7028081,181.8,181.79,8.4413]
[1753858214559,3.4528081,181.8,181.79,8.4413]
[1753858214763,3.4528081,181.8,181.79,11.13743269]
[1753858217969,6.7028081,181.8,181.79,8.19743269]
[1753858218264,6.7028081,181.8,181.79,11.13743269]
[1753858218960,6.7028081,181.8,181.79,2.94]
[1753858219566,3.4528081,181.8,181.79,2.94]
[1753858219767,6.7028081,181.8,181.79,2.94]
[1753858219966,6.7028081,181.8,181.79,8.4413]
[1753858220973,3.4528081,181.8,181.79,8.4413]
[1753858221270,6.6328081,181.8,181.79,8.4413]
[1753858222069,6.6328081,181.8,181.78,8.19763269]
[1753858222268,3.18,181.79,181.78,2.69613269]
[1753858222470,3.18,181.79,181.77,2.94]
[1753858222664,3.18,181.78,181.77,2.94]
[1753858222866,3.18,181.78,181.75,2.94]
[1753858223072,3.18,181.78,181.73,2.94]
[1753858223271,3.18,181.76,181.73,8.4429]
[1753858223765,3.18,181.75,181.73,8.4429]
[1753858224065,3.18,181.75,181.73,2.94]
[1753858224267,3.18,181.76,181.67,2.94]
[1753858224564,3.18,181.74,181.68,2.94]
[1753858224767,3.18,181.73,181.72,2.94]
[1753858225071,5.5023,181.76,181.72,2.94]
[1753858225373,2.69613269,181.79,181.72,2.94]
[1753858225670,3.18,181.76,181.72,2.94]
[1753858225865,2.69613269,181.79,181.74,2.94]
[1753858226066,6.6328081,181.8,181.76,2.94]
[1753858226369,3.4528081,181.8,181.79,2.94]
[1753858226566,3.4528081,181.8,181.77,2.69613269]
[1753858226765,3.4528081,181.8,181.79,2.94]
[1753858227172,6.6328081,181.8,181.79,2.94]
[1753858227570,6.6328081,181.8,181.79,8.4413]
[1753858228074,3.4528081,181.8,181.79,8.4413]
[1753858229173,6.6328081,181.8,181.79,8.4413]
[1753858230074,10.8021037,181.8,181.79,8.4413]
[1753858231177,10.8021037,181.8,181.79,2.94]
[1753858231678,3.4528081,181.8,181.78,5.5015]
[1753858231878,3.18,181.79,181.78,8.4415]
[1753858232680,6.6328081,181.8,181.79,8.4413]
[1753858234680,3.4528081,181.8,181.79,8.4413]
[1753858234881,3.4528081,181.8,181.79,11.13743269]
[1753858241588,8.1e-06,181.8,181.79,11.13743269]
[1753858241887,3.18,181.85,181.84,8.4397]
[1753858242289,7.36979457,181.85,181.84,8.4397]
[1753858242989,3.18,181.85,181.84,8.4397]
[1753858243786,3.18,181.87,181.86,2.94]
[1753858243987,9.68759077,181.87,181.84,2.94]
[1753858244188,3.18,181.86,181.84,2.94]
[1753858244485,3.18,181.9,181.84,8.4397]
[1753858244689,3.18,181.87,181.85,2.94]
[1753858245292,3.18,181.87,181.84,5.4997]
[1753858245486,3.18,181.87,181.83,5.5]
[1753858245691,3.18,181.87,181.81,122.57613269]
[1753858245894,2.69613269,181.87,181.81,116.94]
[1753858246086,5.4997,181.85,181.81,122.4406]
[1753858246286,3.18,181.84,181.81,122.4406]
[1753858246784,3.18,181.84,181.81,116.94]
[1753858247092,3.18,181.84,181.81,119.88]
[1753858247891,3.18,181.84,181.81,125.3805]
[1753858249891,3.18,181.84,181.82,2.94]
[1753858250592,2.69613269,181.89,181.83,2.94]
[1753858250893,3.18,181.87,181.83,2.69613269]
[1753858251094,3.18,181.87,181.84,8.4397]
[1753858251592,3.18,181.87,181.84,2.94]
[1753858253093,8.6789,181.87,181.84,8.4397]
[1753858253294,3.02,181.86,181.84,2.94]
[1753858253692,8.5192,181.86,181.81,122.87613269]
[1753858253888,3.02,181.85,181.82,3.24]
[1753858254083,3.02,181.85,181.82,8.7403]
[1753858254291,3.02,181.84,181.82,5.5003]
[1753858255092,3.02,181.84,181.82,8.7403]
[1753858255691,3.02,181.84,181.82,5.5003]
[1753858256188,3.02,181.84,181.82,8.7403]
[1753858256586,3.02,181.84,181.82,3.24]
[1753858257000,3.02,181.84,181.82,8.7402]